Cogmind - Beta 11.1 @@@ ROGUE MODE // 2022.05.24 @ 21:00:52 Player: Decinym Result: Destroyed by DAS Turret with DAS Cannon Performance ------------- Evolutions (1) 500 Regions Visited (5) 1000 Robots Destroyed (83) 415 Value Destroyed (2107) 2107 Prototype IDs (32) 640 Alien Tech Used (0) 0 Bonus (556) 556 TOTAL SCORE: 5218 Bonus ------- High Alert Combat Kills 249 Follower Combat Kills 7 Aligned with FarCom 300 Cogmind --------- Core Integrity 0/400 Matter 156/300 Energy 150/150 System Corruption 3% Temperature Cool (25) Movement Treading (480) Ox4 Location -9/Exiles Parts ------- > --- POWER (1) -------- Light Angular Momentum Engine > --- PROPULSION (3) --- Light Treads > --- UTILITY (3) ------ Huge Storage Unit Advanced Targeting Computer > --- WEAPON (2) ------- Improved Medium Laser Heavy Assault Rifle > --- INVENTORY (25) --- High-capacity Storage Unit Superbattery (1500) High-capacity Matter Pod (200) Compact Matter Pod (150) Improved Targeting Computer Advanced Targeting Computer Medium Armor Plating Hacking Suite Trap Extractor (0/4) Improved Medium Laser Shotgun Improved Assault Rifle Datajack Longsword +1 Peak State ------------ > --- POWER ------------ Heavy Ion Engine > --- PROPULSION ------- Light Treads Light Treads Light Treads > --- UTILITY ---------- Huge Storage Unit Advanced Targeting Computer Improved Light Armor Plating > --- WEAPON ----------- Light Assault Rifle Heavy Assault Rifle > --- INVENTORY -------- Heavy Ion Engine Light Angular Momentum Engine Light Treads Light Treads Light Treads Light Treads High-capacity Storage Unit Superbattery High-capacity Matter Pod Compact Matter Pod Improved Targeting Computer Advanced Targeting Computer Medium Armor Plating Hacking Suite Trap Extractor Improved Medium Laser Improved Medium Laser Heavy Assault Rifle Shotgun Improved Assault Rifle Rocket Launcher Rocket Launcher Datajack Longsword +1 [Rating: 22] Favorites ----------- Power Heavy Ion Engine Engine Heavy Ion Engine Power Core Light Nuclear Core Propulsion Light Treads Treads Light Treads Leg Aluminum Leg Utility Advanced Targeting Computer Device Seismic Detector Storage Huge Storage Unit Processor Advanced Targeting Computer Protection Light Armor Plating Weapon Shotgun Energy Gun Improved Medium Laser Ballistic Gun Shotgun Launcher Rocket Launcher Special Melee Weapon Datajack Build | -11 -10 -10 -9 -9 -9 ------- Run | Scr Mat Min Mat Min Exi Slots Evolved 2 | . . . 2 . . Power . | . . . . . . Propulsion 1 | . . . 1 . . Utility 1 | . . . 1 . . Weapon . | . . . . . . Parts Attached 72 | . 11 7 37 3 14 Power 8 | . 1 2 2 . 3 Engine 7 | . 1 1 2 . 3 Core 1 | . . 1 . . . Reactor . | . . . . . . Propulsion 24 | . 3 4 11 2 4 Treads 17 | . . . 11 2 4 Leg 7 | . 3 4 . . . Wheel . | . . . . . . Hover . | . . . . . . Flight . | . . . . . . Utility 13 | . 2 1 8 1 1 Device 3 | . 1 . 2 . . Storage 3 | . 1 . 2 . . Processor 3 | . . 1 2 . . Hackware . | . . . . . . Protection 4 | . . . 2 1 1 Artifact . | . . . . . . Weapon 27 | . 5 . 16 . 6 Energy Gun 8 | . 3 . 4 . 1 Energy Cannon . | . . . . . . Ballistic Gun 12 | . 2 . 8 . 2 Ballistic Cannon . | . . . . . . Launcher 6 | . . . 4 . 2 Special Weapon . | . . . . . . Impact Weapon . | . . . . . . Slashing Weapon . | . . . . . . Piercing Weapon . | . . . . . . Special Melee Weapon 1 | . . . . . 1 Unidentified Prototypes 2 | . . . 2 . . Parts Lost 22 | . 3 1 4 . 14 Power 4 | . 1 1 . . 2 Propulsion 7 | . 1 . . . 6 Utility 3 | . . . 1 . 2 Weapon 8 | . 1 . 3 . 4 Highest Loss Streak 14 | . 1 1 1 . 14 To Critical Strikes . | . . . . . . Average Slot Usage (%) 99 | . 96 99 98 100 98 Engine 8 | . 13 3 8 11 10 Core 3 | . . 10 2 . . Treads 19 | . . . 31 33 32 Leg 11 | . 26 28 . . . Device 2 | . 12 . 4 . . Storage 12 | . 14 14 11 11 11 Processor 12 | . . 13 15 15 11 Protection 3 | . . . 1 6 10 Energy Gun 7 | . 16 . 8 11 6 Ballistic Gun 16 | . 11 28 13 11 11 Naked Turns . | . . . . . . Heaviest Build 96 | 13 32 34 96 95 95 Greatest Support 60 | 20 20 30 60 60 60 Greatest Overweight (x) 3 | . 3 1 1 1 1 Average Overweight (x) . | . . 1 . 1 1 Largest Inventory Capacity 25 | . 15 15 25 25 25 Average Capacity 19 | . 13 15 21 25 25 Most Carried 25 | . 15 15 25 25 25 Average Carried 19 | . 10 14 20 24 24 Final Capacity 25 | 8 15 15 25 25 25 Final Carried 25 | 6 15 15 24 25 14 Class Distribution -------------------- 59% | Scavenger-Mutant 40% | Mutant Dominant Class ---------------- Mutant | -10/Materials Mutant | -10/Mines Scavenger-Mutant | -9/Materials Scavenger-Mutant | -9/Mines Scavenger-Mutant | -9/Exiles Resources | -11 -10 -10 -9 -9 -9 ----------- Run | Scr Mat Min Mat Min Exi Matter Collected 1829 | 200 221 503 836 56 13 Remotely . | . . . . . . Salvage Created 2788 | . 323 479 1743 237 6 Parts 172 | . 16 31 105 20 . Haulers Intercepted 6 | . . . 6 . . Recyclers Shooed 1 | . . 1 . . . Parts Field Recycled . | . . . . . . Retrieved Matter . | . . . . . . Parts Self-Destructed . | . . . . . . Prevented . | . . . . . . Kills | -11 -10 -10 -9 -9 -9 ------- Run | Scr Mat Min Mat Min Exi Combat Hostiles Destroyed 66 | . 11 10 35 5 5 Guns 55 | . 11 10 29 5 . AOE 11 | . . . 6 . 5 Classes Destroyed 9 | . 2 3 3 . 1 Worker 7 | . . . 3 4 . Builder 2 | . . 1 1 . . Tunneler 3 | . . 2 1 . . Hauler 6 | . . . 6 . . Recycler 4 | . . 1 3 . . Swarmer 13 | . 2 2 7 2 . Grunt 40 | . 9 8 20 3 . Sentry 8 | . . . 8 . . Assembled 5 | . . . . . 5 Best Kill Streak 7 | . 2 3 7 4 5 Combat Bots Only 5 | . 2 3 5 3 5 Max Kills in Single Turn 3 | . 2 2 3 2 2 Gunslinging 1 | . . . . 1 . Exploded 2 | . . . 2 . 2 Melee . | . . . . . . Uniques/NPCs Destroyed . | . . . . . . Combat | -11 -10 -10 -9 -9 -9 -------- Run | Scr Mat Min Mat Min Exi Damage Taken 4195 | . 615 533 1244 128 1675 Core 617 | . 114 83 173 35 212 Absorbed by Shields . | . . . . . . Core Remaining (%) 60 | 100 . 21 . . . Volleys Fired 193 | . 35 36 91 16 15 Largest 2 | . 2 2 2 2 2 Hottest 130 | . 130 46 112 76 79 Shots Fired 372 | . 70 73 175 32 22 Gun 362 | . 70 73 170 32 17 Cannon . | . . . . . . Launcher 10 | . . . 5 . 5 Special . | . . . . . . Kinetic 249 | . 28 73 118 16 14 Thermal 113 | . 42 . 52 16 3 Explosive 10 | . . . 5 . 5 Electromagnetic . | . . . . . . Robot Hit Streak 18 | . 7 7 13 13 18 Robot Miss Streak 11 | . 11 5 5 1 1 Penetration Max . | . . . . . . Secondary Targets 7 | . . 2 4 1 . Max Gunslinging Chain 1 | . . 1 1 1 . Shots Hit Robots 282 | . 53 56 129 23 21 Core Hits 175 | . 42 29 79 12 13 Critical Kills 1 | . . . 1 . . Critical Parts Destroyed 3 | . . 1 2 . . Critical Strikes 10 | . . 1 7 2 . Burn 6 | . . . 4 2 . Destroy 4 | . . 1 3 . . Melee Attacks 1 | . . . . . 1 Impact . | . . . . . . Slashing . | . . . . . . Piercing . | . . . . . . Sneak Attacks 1 | . . . . . 1 Combat Hostiles . | . . . . . . Follow-up Attacks . | . . . . . . Damage Inflicted 5123 | . 593 743 2786 323 678 Guns 3945 | . 593 743 2109 323 177 Cannons . | . . . . . . Explosions 1178 | . . . 677 . 501 Melee . | . . . . . . Ramming . | . . . . . . Kinetic 2512 | . 178 743 1383 83 125 Thermal 1495 | . 415 . 788 240 52 Explosive 1116 | . . . 615 . 501 Electromagnetic . | . . . . . . Impact . | . . . . . . Slashing . | . . . . . . Piercing . | . . . . . . Highest Corruption 3 | . 1 1 . . 3 Average Corruption 1 | . 1 1 . . 3 Corruption Purged . | . . . . . . Corruption Blocked . | . . . . . . Effects 17 | . 3 14 . . . Message Errors 5 | . . 5 . . . Matter Fused 3 | . 1 2 . . . Heat Flow Errors 3 | . . 3 . . . Energy Discharges 2 | . 1 1 . . . Data Loss (minor) 2 | . 1 1 . . . Misfires 1 | . . 1 . . . Alerts 1 | . . 1 . . . Overload Shots . | . . . . . . Overflow Damage 27 | . . . . . 27 Projectiles . | . . . . . . Explosions 27 | . . . . . 27 Melee . | . . . . . . Knockbacks . | . . . . . . Impact . | . . . . . . Kinetic . | . . . . . . Secondary . | . . . . . . Self-Inflicted Damage 216 | . . . 125 . 91 Shots 5 | . . . 2 . 3 Rammed . | . . . . . . Targets Rammed . | . . . . . . Kicked . | . . . . . . Crushed . | . . . . . . Highest Temperature 413 | . 413 277 303 157 25 Average Temperature 95 | . 137 69 93 56 7 Received Heat Transfer 1041 | . 267 279 456 39 . Effects 4 | . 2 . 2 . . Shutdowns 2 | . 2 . . . . Interference 2 | . . . 2 . . Siege Activations . | . . . . . . Robots Corrupted . | . . . . . . Combat Hostiles . | . . . . . . Parts Fried . | . . . . . . Impact Corruptions . | . . . . . . Robots Melted . | . . . . . . Combat Hostiles . | . . . . . . Parts Melted 4 | . . . 4 . . Heat Transferred 3269 | . 555 . 1937 666 111 Parts Sabotaged . | . . . . . . Parts Stolen . | . . . . . . Parts Stripped . | . . . . . . Power Chain Reactions . | . . . . . . Missiles Intercepted . | . . . . . . Alert | -11 -10 -10 -9 -9 -9 ------- Run | Scr Mat Min Mat Min Exi Peak Influence 1020 | . 146 105 1020 439 . Initial 364 | . . . . 364 . Average 206 | . 69 39 499 178 . Maximum Alert Level 3 | . . . 3 2 . Low Security (%) 69 | . 100 100 31 58 . Level 1 13 | . . . 7 38 . Level 2 9 | . . . 32 2 . Level 3 7 | . . . 27 . . Level 4 . | . . . . . . Level 5 . | . . . . . . High Security . | . . . . . . Max Security . | . . . . . . Squads Dispatched 5 | . 1 . 4 . . Investigation 2 | . 1 . 1 . . Extermination . | . . . . . . Reinforcement 1 | . . . 1 . . Assault 2 | . . . 2 . . Garrison . | . . . . . . Intercept . | . . . . . . Searches Triggered . | . . . . . . Construction Impeded . | . . . . . . Haulers Reinforced . | . . . . . . Active Scanning Responses . | . . . . . . Cargo Convoy Interrupts . | . . . . . . Stealth | -11 -10 -10 -9 -9 -9 --------- Run | Scr Mat Min Mat Min Exi Distress Signals 5 | . 1 . 4 . . Communications Jammed . | . . . . . . Distress Signals . | . . . . . . Times Spotted 125 | . 18 12 54 6 35 Peak Tracking Total 13 | . 5 3 7 3 13 Tactical Retreats 8 | . 1 1 3 . 3 Traps | -11 -10 -10 -9 -9 -9 ------- Run | Scr Mat Min Mat Min Exi Traps Triggered 1 | . . . 1 . . Indirectly . | . . . . . . Trap Hack Attempts . | . . . . . . Triggered . | . . . . . . Disarmed 3 | . 3 . . . . Reprogrammed . | . . . . . . Reused . | . . . . . . Traps Extracted . | . . . . . . Installed . | . . . . . . Triggered . | . . . . . . Machines | -11 -10 -10 -9 -9 -9 ---------- Run | Scr Mat Min Mat Min Exi Machines Disabled 6 | . . . 5 . 1 Max in Single Turn 2 | . . . 2 . 1 Machines Sabotaged . | . . . . . . Garrisons Compromised . | . . . . . . Overloaded Fab Kills . | . . . . . . Hacking | -11 -10 -10 -9 -9 -9 --------- Run | Scr Mat Min Mat Min Exi Machines Accessed 13 | . 5 . 5 1 2 Terminals 10 | . 5 . 4 1 . Fabricators . | . . . . . . Repair Stations . | . . . . . . Recycling Units . | . . . . . . Scanalyzers 1 | . . . 1 . . Garrison Access . | . . . . . . Total Hacks 30 | . 8 . 16 4 2 Successful 18 | . 5 . 9 2 2 Failed 11 | . 3 . 6 2 . Catastrophic 3 | . 2 . . 1 . Database Lockouts 1 | . . . 1 . . Manual 22 | . 5 . 13 3 1 Terminals 26 | . 8 . 14 4 . Fabricators . | . . . . . . Repair Stations . | . . . . . . Recycling Units . | . . . . . . Scanalyzers 2 | . . . 2 . . Garrison Access . | . . . . . . Terminal Hacks 12 | . 5 . 3 2 2 Record 1 | . . . . . 1 Part Schematic 2 | . 2 . . . . Prototype ID Bank 2 | . 1 . 1 . . Branch Access Points 2 | . 1 . 1 . . Unreport Threat 1 | . . . . 1 . Disarm Traps 1 | . 1 . . . . Hauler Manifests 1 | . . . 1 . . Zone Layout 1 | . . . . 1 . EX-Prototype ID Bank 1 | . . . . . 1 Fabricator Hacks . | . . . . . . Repair Station Hacks . | . . . . . . Recycling Unit Hacks . | . . . . . . Scanalyzer 2 | . . . 2 . . Insert Component 1 | . . . 1 . . Analyze 1 | . . . 1 . . Garrison Access Hacks . | . . . . . . Unauthorized Hacks 4 | . . . 4 . . Terminals 4 | . . . 4 . . Botnet 3 | . . . 3 . . Disrupt 1 | . . . 1 . . Fabricators . | . . . . . . Repair Stations . | . . . . . . Recycling Units . | . . . . . . Scanalyzers . | . . . . . . Garrison Access . | . . . . . . Data Cores Recovered . | . . . . . . Used . | . . . . . . Hacking Detections 9 | . 5 . 3 1 . Full Trace Events 1 | . 1 . . . . Feedback Events 1 | . 1 . . . . Corruption 1 | . 1 . . . . Feedback Blocked . | . . . . . . Robot Schematics Acquired . | . . . . . . Robots Built . | . . . . . . Authchips . | . . . . . . Time . | . . . . . . Total Robot Build Rating . | . . . . . . Part Schematics Acquired 3 | . 2 . 1 . . Parts Built . | . . . . . . Authchips . | . . . . . . Time . | . . . . . . Total Part Build Rating . | . . . . . . Parts Repaired . | . . . . . . Time . | . . . . . . Parts Recycled . | . . . . . . Recycled Matter . | . . . . . . Retrieved Matter . | . . . . . . Retrieved Components . | . . . . . . Parts Scanalyzed 1 | . . . 1 . . Part Schematics Acquired 1 | . . . 1 . . Parts Damaged . | . . . . . . Bothacking | -11 -10 -10 -9 -9 -9 ------------ Run | Scr Mat Min Mat Min Exi Used RIF Installer . | . . . . . . Robots Hacked 1 | . . . . . 1 Non-combat 1 | . . . . . 1 Combat . | . . . . . . Robot Hacks Applied 1 | . . . . . 1 parse_system 1 | . . . . . 1 Relay Couplers Released . | . . . . . . Fabnet Peak Effective % . | . . . . . . Robots Rewired . | . . . . . . Allies Hacked . | . . . . . . Hacks Repelled . | . . . . . . Allies | -11 -10 -10 -9 -9 -9 -------- Run | Scr Mat Min Mat Min Exi Total Allies 3 | . . . . 3 . Largest Group 3 | . . . . 3 2 Highest-Rated Group 81 | . . . . 81 50 Highest-Rated Ally 31 | . . . . 31 31 Total Orders . | . . . . . . Ally Attacks 4 | . . . . 4 . Total Damage 44 | . . . . 44 . Kills 1 | . . . . 1 . Allies Corrupted . | . . . . . . Allies Melted . | . . . . . . Intel | -11 -10 -10 -9 -9 -9 ------- Run | Scr Mat Min Mat Min Exi Robot Analysis Total . | . . . . . . Derelict Logs Recovered 4 | . . 2 . 2 . Drone Launches . | . . . . . . Drone Recoveries . | . . . . . . Exploration | -11 -10 -10 -9 -9 -9 ------------- Run | Scr Mat Min Mat Min Exi Turns Passed 6795 | . 839 1854 1636 1935 531 Spaces Moved 2875 | 1 407 896 593 780 198 Core . | . . . . . . Treads 1548 | . . . 570 780 198 Legs 1327 | 1 407 896 23 . . Wheels . | . . . . . . Hover . | . . . . . . Flight . | . . . . . . Fastest Speed 120 | 120 120 190 120 240 240 Average Speed 205 | 120 171 190 193 240 240 Slowest Speed 330 | 120 330 190 240 240 240 Overloaded Moves . | . . . . . . Propulsion Burnouts . | . . . . . . Robots Hopped . | . . . . . . Cave-ins Triggered . | . . . . . . Exploration Rate (%) 64 | 2 82 101 50 100 54 Regions Visited 5 Branch Regions 3 Pre-discovered Areas 2 | . . . . 1 1 Known Exits Taken 2 | . 1 . 1 . . Unknown Exits Taken 3 | 1 . 1 . 1 . Scrap Searched 4 | . . 2 . 2 . Spaces Dug 9 | . . . 9 . . Terrain Destroyed 88 | . . . 81 . 7 Melee . | . . . . . . Projectile . | . . . . . . AOE 88 | . . . 81 . 7 Terrain Rammed . | . . . . . . Walls Destroyed . | . . . . . . Machines Disabled . | . . . . . . Actions | -11 -10 -10 -9 -9 -9 --------- Run | Scr Mat Min Mat Min Exi Total 3418 | . 483 980 907 816 232 Wait 181 | . 5 22 143 11 . Move 2870 | . 406 895 592 779 198 Hop . | . . . . . . Pick Up 49 | . 16 7 20 4 2 Fast Attach 16 | . 4 4 8 . . Attach 22 | . 4 . 6 1 11 Detach 2 | . . . 2 . . Swap 34 | . 3 3 23 2 3 Drop 50 | . 10 13 22 3 2 Fire 193 | . 35 36 91 16 15 Melee 1 | . . . . . 1 Ram . | . . . . . . Kick . | . . . . . . Crush . | . . . . . . Escape Stasis . | . . . . . . Rewire . | . . . . . . Trap . | . . . . . . Miscellaneous . | . . . . . . Route ------- -11/Scrapyard -10/Materials (discovered 5 exits: *Mat x3 / *Min x2) -10/Mines (discovered 2 exits: *Mat x2) -9/Materials (discovered 2 exits: [*Mat] / *Min) -9/Mines (discovered 3 exits: [*Mat x2] / *Exi) -9/Exiles History --------- Turn | Location | Event 1 | -11/Scrapyard | Discovered new exit (range 0) 1 | -11/Scrapyard | Entered Materials 148 | -10/Materials | Discovered new exit (range 13) 306 | -10/Materials | Build established: Mutant 342 | -10/Materials | Discovered new exit (range 12) 348 | -10/Materials | Identified exit to Mines 676 | -10/Materials | Discovered new exit (range 10) 840 | -10/Materials | Entered Mines 846 | -10/Mines | Joined a pair of Derelicts in attacking an 0b10 outpost 1244 | -10/Mines | Core integrity fell below 50% 1332 | -10/Mines | Received a Rocket Launcher from a helpful Derelict 1451 | -10/Mines | Discovered new exit (range 13) 1464 | -10/Mines | Learned 2 Materials zone layouts 1534 | -10/Mines | Discovered new exit (range 9) 2694 | -10/Mines | Entered Materials 2694 | -9/Materials | Evolved 2 slots: Propulsion x1, Utility x1 2969 | -9/Materials | Identified exit to Mines 2980 | -9/Materials | Central database locked down 3001 | -9/Materials | Discovered new exit (range 9) 3068 | -9/Materials | Build established: Scavenger-Mutant 3894 | -9/Materials | First assault squad dispatched 4330 | -9/Materials | Entered Mines 4482 | -9/Mines | Deemed a non-threat by the Exiles lab entrance 4539 | -9/Mines | Discovered new exit (range 13) 4805 | -9/Mines | Core integrity fell below 50% 4811 | -9/Mines | Discovered new exit (range 11) 4881 | -9/Mines | Received a Mining Laser from a helpful Derelict 4985 | -9/Mines | Assembled infested the area 5523 | -9/Mines | Learned 2 Materials zone layouts 5850 | -9/Mines | Learned location of Storage (-7) 6251 | -9/Mines | Discovered new exit (range 5) 6265 | -9/Mines | Entered Exiles 6265 | -9/Exiles | Accompanied by 2 allies 6295 | -9/Exiles | Led the pair of lost Derelicts to a safe place 6321 | -9/Exiles | Met 8R-AWN 6364 | -9/Exiles | Met EX-HEX 6436 | -9/Exiles | Met EX-BIN 6469 | -9/Exiles | Aligned with FarCom system 6472 | -9/Exiles | Given EX-Vault access code 6532 | -9/Exiles | Opened EX-Vault 6549 | -9/Exiles | Found Longsword +1 6559 | -9/Exiles | Found Superbattery 6612 | -9/Exiles | Warned to stay clear of 0b10 Research branches 6687 | -9/Exiles | Met EX-DEC 6703 | -9/Exiles | Learned location of Zion (-6) 6748 | -9/Exiles | Attacked by the Exiles 6793 | -9/Exiles | Core integrity fell below 20% 6796 | -9/Exiles | Destroyed by DAS Turret with DAS Cannon Last Messages --------------- 06775_ as-69686 destroyed. 06775_ as-24943 destroyed. 06775_ Imp. Light Armor Plating destroyed. 06775_ Hvy. Assault Rifle destroyed. 06775_ Critical hit (Blast). 06777_ Destroyed Asb. Blade. 06777_ as-37089 destroyed. 06777_ Machine disabled. 06777_ Rocket Launcher destroyed. 06779_ Hvy. Ion Engine destroyed. 06779_ System corrupted by crushing effect (+3). 06781_ The unstable cave ceiling collapses. 06781_ as-20326 destroyed. 06783_ Lgt. Treads destroyed. 06783_ Destroyed Lgt. Treads. 06784_ Rocket Launcher destroyed. 06785_ Lgt. Treads destroyed. 06787_ Knocked back. 06788_ Acquired 13 matter. 06795_ Penetrated by HV Slug. Map ----- +----------------------------------------------------+ | ????????????????????????????????????????????#" | | ???????????????????????????????##???????????#" | | ??????????????????????????????? """????????#" | | ???????????????????????????????" """#???????## | | ??????????????????????????????"" ?????????# | | ?????????????????????????????#"" ?????????#" | | ?????????????????????????????#"" "?????????#" | | ?????????????????????????????? ""?????????#" | | ???????????????????????????????" "?????????##" | | ????????????????? #???????????# #????????##"" | | ????????????????? #####????### ###?######"" | | ???????????????? """#####X# #"###""""""" | | ??????????????? """""" " "" | | ???????????????# "" """ " | | ????????????????# " " | | ????????????????### | | ??????????????????### | | ????????????????????## | | ?????????????????????## | | ??????????????????????##" | | ???????????????????????#" " """""" | | ??????????????????????##" ######"" | | ??????????????????????#" ""##????### | | ?????????????????????##""" """##???????? | | ?????????????????????#" """##????????? | | ?????????????????????# @%% ""#?????????? | | ?????????????????????# ##?????????? | | ?????????????????????# a z #????????? | | ?????????????????????# t ????????? | | ????????????????????# ????????? | | ????????????????????## a ????????? | | ?????????????????????# ?????????? | | ?????????????????????## ?????????? | | ??????????????????????##"""" ??????????? | | ???????????????????????#"" ??????????? | | ???????????????????????#" ???????????? | | ????????????????????????""" ???????????? | | ?????????????????????????? ????????????? | | ??????????????????????????? ??????????????? | | ????????????????????????????? ????????????????? | | ?????????????????????????????????????????????????? | | ?????????????????????????????????????????????????? | | ?????????????????????????????????????????????????? | | ?????????????????????????????????????????????????? | | ?????????????????????????????????????????????????? | | ?????????????????????????????????????????????????? | | ?????????????????????????????????????????????????? | | ?????????????????????????????????????????????????? | | ?????????????????????????????????????????????????? | | ?????????????????????????????????????????????????? | +----------------------------------------------------+ Best States ------------- Heat Dissipation 42 Energy Generation 18 Energy Capacity 280 Matter Stores 300 Matter Capacity 300 Sight Range 16 Terrain Scan Density 10 Armor Coverage 150 Evasion (%) 55 Targeting Accuracy 8 Recoil Reduction 3 Item Schematics ----------------- Huge Storage Unit | -10/Materials | Hacked Hcp. Storage Unit | -10/Materials | Hacked Adv. Targeting Computer | -9/Materials | Scanalyzed Robot Schematics ------------------ None Fabricated ------------ Nothing Alien Tech Used ----------------- None Achievements -------------- None Challenges ------------ None Game ------ Seed ActuatorThrowingMantle Manual? 0 Play Time 00:27:30 Cumulative 357.5 hours Start 2022.05.24 @ 20:34:30 End 2022.05.24 @ 21:00:52 Sessions 1 Manual Loads 0 Difficulty Rogue Special Mode None Game No. 387 Rogue 387 Adventurer 0 Explorer 0 Win Type - Total 29 Types 18/3/2/1/2/0/3/0/0 Lore% 89 Gallery% 88 Achievement% 80 Wizard Run 0 Options --------- ASCII 0 Keyboard 0 Movement Arrows Keybinds 0 Fullscreen 2 Font 18/SmallcapsGlow Map View 76x50 Tactical HUD 1 Map Filters NONE Filters NONE Steam 1 RUN: 5f6b6eaf-fe2b-4f3d-9e66-7f5d63bb5255